[Event "44th Indian Team Championship 2025"]
[Site "Gujarat"]
[Date "2025.03.05"]
[Round "1.1"]
[White "Nitin, S.."]
[Black "Dave Sneh"]
[Result "0-1"]
[Annotator "RC"]
[ECO "C26"]
[WhiteElo "2349"]
[BlackElo "1762"]
[PlyCount "96"]
[EventDate "2025.03.03"]
[EventCountry "IND"]
[SourceTitle "playchess.com"]
[Source "ChessBase"]
[SourceQuality "1"]
[TimeControl "5400+30"]

1. e4 {[%emt 0:00:34]} e5 {[%emt 0:00:02]} 2. Nc3 {[%emt 0:00:47]} Nc6 {[%emt 0:00:15]} 3. g3 {[%emt 0:01:55]} Nf6 {[%emt 0:01:53]} 4. Bg2 {[%emt 0:00:11]} a6 {[%emt 0:03:30]} 5. d3 {[%emt 0:07:28]} Bc5 {[%emt 0:16:08]} 6. Nge2 {[%emt 0:09:21]} h5 {[%emt 0:11:04]} 7. h3 {[%emt 0:03:46]} h4 {[%emt 0:04:40]} 8. Bg5 {[%emt 0:11:54]} hxg3 {[%emt 0:13:45]} 9. Nxg3 {[%emt 0:05:41]} Nd4 {[%emt 0:04:50]} 10. Qd2 {[%emt 0:19:39]} c6 {[%emt 0:06:37]} 11. O-O-O {[%emt 0:03:18]} Ne6 {[%emt 0:08:50]} 12. h4 {[%emt 0:01:31]} Qa5 {[%emt 0:12:50]} 13. Nf5 {[%emt 0:11:13]} Ng4 {[%emt 0:01:19]} 14. Rdf1 {[%emt 0:02:31]} g6 {[%emt 0:05:24]} 15. Ne3 {[%emt 0:00:43]} Nxe3 {[%emt 0:01:58]} 16. fxe3 {[%emt 0:00:13]} Nxg5 {[%emt 0:00:17]} 17. hxg5 {[%emt 0:00:13]} Rxh1 {[%emt 0:00:05]} 18. Rxh1 {[%emt 0:00:10]} Qd8 {[%emt 0:00:16]} 19. d4 {[%emt 0:02:53]} Bf8 {[%emt 0:00:09]} 20. dxe5 {[%emt 0:03:10]} Qxg5 {[%emt 0:00:20]} 21. Na4 {[%emt 0:01:09]} b5 {[%emt 0:01:33]} 22. Nb6 {[%emt 0:04:12]} Rb8 {[%emt 0:00:03]} 23. Nxc8 {[%emt 0:00:20]} Rxc8 {[%emt 0:01:05]} 24. Rh7 {[%emt 0:03:25]} Qxe5 {[%emt 0:00:15]} 25. Rxf7 {[%emt 0:01:04]} Kxf7 {[%emt 0:01:19]} 26. Qxd7+ {[%emt 0:00:04]} Be7 {[%emt 0:03:00]} 27. Qxc8 {[%emt 0:00:05]} Qg3 {[%emt 0:00:28]} 28. Kd1 {[%emt 0:01:22]} Qxg2 {[%emt 0:00:11]} 29. Qxc6 {[%emt 0:00:03]} Qf1+ {[%emt 0:01:55]} 30. Kd2 {[%emt 0:00:01]} Qf6 {[%emt 0:00:21]} 31. Qd5+ {[%emt 0:00:29]} Qe6 {[%emt 0:00:11]} 32. Qa8 {[%emt 0:00:09]} Qxa2 {[%emt 0:01:00]} 33. b3 {[%emt 0:00:01]} Qa3 {[%emt 0:00:14]} 34. Qd5+ {[%emt 0:00:09]} Kf8 {[%emt 0:00:17]} 35. e5 {[%emt 0:00:05]} Qc5 {[%emt 0:00:47]} 36. Qe6 {[%emt 0:00:18]} Bg5 {[%emt 0:00:53]} 37. Qh3 {[%emt 0:00:15]} Qxe5 {[%emt 0:00:06]} 38. c4 {[%emt 0:00:23]} bxc4 {[%emt 0:00:15]} 39. bxc4 {[%emt 0:00:01]} Ke7 {[%emt 0:00:20]} 40. Qh7+ {[%emt 0:00:05]} Kd8 {[%emt 0:00:43]} 41. Qxg6 {[%emt 0:00:14]} Qxe3+ {[%emt 0:00:21]} 42. Kc2 {[%emt 0:00:01]} Qd2+ {[%emt 0:01:13]} 43. Kb3 {[%emt 0:00:02]} a5 {[%emt 0:00:17]} 44. Qb6+ {[%emt 0:00:22]} Ke7 {[%emt 0:00:11]} 45. c5 {[%emt 0:01:48]} Qd5+ {[%emt 0:00:31]} 46. Kc2 {[%emt 0:00:28]} Qc4+ {[%emt 0:00:54]} 47. Kd1 {[%emt 0:00:05]} Qd3+ {[%emt 0:00:19]} 48. Ke1 {[%emt 0:00:05]} Bh4# {[%emt 0:00:05]} 0-1

[Event "44th Indian Team Championship 2025"]
[Site "Gujarat"]
[Date "2025.03.05"]
[Round "1.2"]
[White "Saumil Nair"]
[Black "Neelash Saha"]
[Result "0-1"]
[Annotator "TA"]
[ECO "A02"]
[WhiteElo "1871"]
[BlackElo "2460"]
[PlyCount "110"]
[EventDate "2025.03.03"]
[EventCountry "IND"]
[SourceTitle "playchess.com"]
[Source "ChessBase"]
[SourceQuality "1"]
[TimeControl "5400+30"]

{[%evp 9,110,-21,-12,-23,-20,-27,2,-2,-6,-32,-17,-42,-38,-53,-36,-27,-29,-41,-34,-96,-81,-111,-100,-119,-107,-113,-113,-100,-93,-181,-181,-193,-214,-197,-171,-176,-180,-171,-157,-166,-166,-166,-135,-206,-210,-457,-485,-466,-433,-498,-240,-245,-229,-263,-262,-277,-277,-260,-253,-339,-324,-333,-345,-327,-320,-395,-393,-397,-393,-472,-483,-474,-475,-600,-600,-792,-789,-789,-792,-762,-748,-29975,-29976,-29977,-29978,-29978,-29979,-29978,-29979,-29982,-29983,-29983,-29984,-29984,-29985,-29985,-29984,-29984,-29985,-29985,-29986,-29987,-29988]} 1. e3 {[%emt 0:01:23]} b6 {[%emt 0:03:54]} 2. f4 {[%emt 0:02:02]} Bb7 {[%emt 0:00:35]} 3. Nf3 {[%emt 0:00:08]} g6 {[%emt 0:00:59]} 4. Be2 {[%emt 0:03:56]} Bg7 {[%emt 0:00:08]} 5. O-O {[%emt 0:00:03]} Nf6 {[%emt 0:00:06]} 6. d3 {[%emt 0:03:25] A02: Bird's Opening.} d5 {[%emt 0:00:12]} 7. Ne5 {[%emt 0:06:27]} Nfd7 {[%emt 0:01:07]} 8. d4 {[%emt 0:02:47] The position is equal.} O-O $146 {[%emt 0:03:43]} (8... Nxe5 9. fxe5 O-O 10. Nd2 Nd7 11. Nf3 e6 12. Bd2 c5 13. Be1 Bh6 14. Qd3 a5 {0-1 Adhiban,B (2655)-Li,C (2732) Wch Blitz Riadh 2017 (15)}) 9. Nd2 {[%emt 0:07:39]} e6 {[%emt 0:06:47]} 10. Bf3 {[%emt 0:09:40]} c5 {[%emt 0:03:49]} 11. c3 {[%emt 0:02:58]} Qe7 {[%emt 0:01:56]} 12. Re1 {[%emt 0:05:17]} Rd8 {[%emt 0:03:58]} 13. Qa4 {[%emt 0:12:23]} Nf6 {[%emt 0:02:28]} 14. dxc5 {[%emt 0:03:55]} (14. Qc2 $15) 14... Qxc5 $17 {[%emt 0:00:37]} 15. Nb3 {[%emt 0:00:52]} Qc7 {[%emt 0:00:40]} 16. Nd4 {[%emt 0:14:01]} Nbd7 {[%emt 0:06:53]} 17. Nb5 {[%emt 0:05:54][%csl LRa7,LRc7]} Qb8 {[%emt 0:00:29]} 18. Nxd7 {[%emt 0:00:07]} Rxd7 {[%emt 0:00:03]} 19. c4 {[%emt 0:01:33]} (19. Rd1 $17) 19... dxc4 $19 {[%emt 0:02:39]} 20. Qxc4 {[%emt 0:01:16]} Bxf3 {[%emt 0:01:03]} 21. gxf3 {[%emt 0:00:01]} Qb7 {[%emt 0:01:17]} 22. e4 {[%emt 0:02:42]} Nh5 {[%emt 0:00:37]} 23. Qe2 {[%emt 0:01:41]} a6 {[%emt 0:00:46]} 24. Nc3 {[%emt 0:00:12]} Bd4+ {[%emt 0:00:13]} 25. Kh1 {[%emt 0:05:33]} Rad8 {[%emt 0:00:12]} 26. f5 {[%emt 0:03:08]} (26. a4 $17) 26... exf5 {[%emt 0:02:04]} (26... gxf5 27. Bh6 $17) 27. exf5 $2 {[%emt 0:00:46] [#]} (27. Bd2 {is a better defense.}) 27... Re7 $1 {[%emt 0:00:24][%mdl 512]} 28. Ne4 {[%emt 0:00:13]} gxf5 {[%emt 0:00:35]} 29. Bg5 {[%emt 0:02:58]} fxe4 {[%emt 0:01:36]} (29... f6 $142 30. Bh6 fxe4) 30. Bxe7 {[%emt 0:00:40]} Qxe7 {[%emt 0:00:05]} 31. Qxe4 {[%emt 0:01:39]} Qxe4 {[%emt 0:00:20]} 32. Rxe4 {[%emt 0:00:05] Rd1 would now be deadly.} Bxb2 {[%emt 0:01:43]} 33. Rb1 {[%emt 0:00:38]} Rd2 {[%emt 0:00:43]} 34. Rg1+ {[%emt 0:00:53]} Kf8 {[%emt 0:00:10]} 35. Rg2 {[%emt 0:00:27]} Rd1+ {[%emt 0:00:35]} 36. Rg1 {[%emt 0:00:01]} Rd3 {[%emt 0:01:09][%cal Ob2d4]} 37. a4 {[%emt 0:01:00]} Bd4 {[%emt 0:00:49]} 38. Rc1 {[%emt 0:00:29]} Nf6 {[%emt 0:00:30]} 39. Rf4 {[%emt 0:00:34]} Be3 {[%emt 0:00:29][%csl LRc1,LRf4]} 40. Rc8+ {[%emt 0:00:05]} Kg7 {[%emt 0:00:03]} 41. Rf5 {[%emt 0:00:54]} Nd5 {[%emt 0:00:43]} 42. Re8 {[%emt 0:00:32] Dodges Ne7} Rd1+ {[%emt 0:00:20]} 43. Kg2 {[%emt 0:00:01]} Nf4+ {[%emt 0:00:17]} 44. Rxf4 {[%emt 0:00:13]} Bxf4 {[%emt 0:00:04][%mdl 4096] Endgame KRB-KR} 45. Re2 {[%emt 0:00:30]} Rd2 {[%emt 0:00:05] Black mates.} 46. Rxd2 {[%emt 0:00:12]} Bxd2 {[%emt 0:00:03] KB-K3P} 47. Kf2 {[%emt 0:00:04]} Bf4 {[%emt 0:00:07]} 48. h3 {[%emt 0:00:03]} b5 {[%emt 0:00:08]} 49. axb5 {[%emt 0:00:05]} axb5 {[%emt 0:00:04] KB-KPP} 50. Ke2 {[%emt 0:00:03]} Kh6 {[%emt 0:00:06]} 51. Kd3 {[%emt 0:00:04]} Kh5 {[%emt 0:00:02]} 52. Kc3 {[%emt 0:00:08]} Bd6 {[%emt 0:00:04]} 53. Kd4 {[%emt 0:00:06]} Kh4 {[%emt 0:00:03]} 54. Kd5 {[%emt 0:00:05] [#]} Kxh3 $1 {[%emt 0:00:02]} 55. Kxd6 {[%emt 0:00:08]} (55. Kd4 Kg3) 55... b4 {[%emt 0:00:02] Weighted Error Value: White=0.50/Black=0.10 (very precise)   Mistake:       	White=4     	Black=1      Inaccurate:     	White=4     	Black=1      OK:         	White=10    	Black=16     Best:        	White=3     	Black=3      Brilliant:      	---       	Black=1} 0-1

[Event "44th Indian Team Championship 2025"]
[Site "Gujarat"]
[Date "2025.03.05"]
[Round "1.3"]
[White "Aronyak Ghosh"]
[Black "Shah Moxit J"]
[Result "1-0"]
[Annotator "TA"]
[ECO "A56"]
[WhiteElo "2530"]
[BlackElo "2017"]
[PlyCount "83"]
[EventDate "2025.03.03"]
[EventCountry "IND"]
[SourceTitle "playchess.com"]
[Source "ChessBase"]
[SourceQuality "1"]
[TimeControl "5400+30"]

{[%evp 9,83,-12,-1,-16,0,0,0,-9,3,0,-6,-2,-15,-1,18,15,31,28,21,29,26,22,31,22,39,28,31,26,33,5,16,18,25,14,31,23,28,26,21,13,29,21,38,27,40,27,70,72,132,128,114,127,118,133,169,169,162,162,252,258,228,234,801,829,29979,29980,29980,0,0,0,29980,29981,29982,29983,29985,29986]} 1. d4 {[%emt 0:01:15]} Nf6 {[%emt 0:00:33]} 2. c4 {[%emt 0:02:04]} c5 {[%emt 0:03:29]} 3. dxc5 {[%emt 0:05:54]} e6 {[%emt 0:06:25]} 4. a3 {[%emt 0:04:37]} Bxc5 {[%emt 0:00:14]} 5. e3 {[%emt 0:00:06]} O-O {[%emt 0:01:16]} 6. Nf3 {[%emt 0:01:15] A56: Czech Benoni.} b6 {[%emt 0:01:12]} 7. Bd3 {[%emt 0:02:09]} Bb7 {[%emt 0:01:03]} 8. O-O {[%emt 0:00:08] The position is equal.} Be7 {[%emt 0:01:54]} 9. Nc3 {[%emt 0:08:29]} d5 $146 {[%emt 0:04:45]} ({Predecessor:} 9... d6 10. b3 Nbd7 11. Bb2 Rc8 12. Nd2 Nc5 13. Be2 Qc7 14. Qc2 Qb8 15. Rfd1 a6 {0-1 Gemy Vargas,J (2325)-Belous,V (2498) Wch U18 Porto Carras 2010 (2)}) 10. cxd5 {[%emt 0:02:30]} Nxd5 {[%emt 0:00:06]} 11. Be4 {[%emt 0:02:33]} Qd7 {[%emt 0:07:03]} 12. Nxd5 {[%emt 0:04:27]} Bxd5 {[%emt 0:01:45]} 13. Bxd5 {[%emt 0:01:34]} Qxd5 {[%emt 0:11:15]} 14. Qxd5 {[%emt 0:00:17]} exd5 {[%emt 0:00:04]} 15. Rd1 {[%emt 0:02:41]} Rd8 {[%emt 0:00:31]} 16. b4 {[%emt 0:01:47]} Bf6 {[%emt 0:02:32]} 17. Ra2 {[%emt 0:01:18][%cal Ba1a2,Ba2d2,Bd2d3][%mdl 32]} Nc6 {[%emt 0:01:21]} 18. Rad2 {[%emt 0:07:51]} Rac8 {[%emt 0:00:36][%cal Ba8c8,Bc8c4,Bc4e4][%mdl 32]} 19. g4 {[%emt 0:01:34]} (19. Rxd5 Rxd5 20. Rxd5 Nxb4 $17) 19... h6 {[%emt 0:06:30]} 20. Kg2 {[%emt 0:01:50]} (20. Rxd5 Rxd5 21. Rxd5 Nxb4 $17) 20... g6 {[%emt 0:10:39]} 21. Rd3 {[%emt 0:02:45][%cal Oc1d2]} Ne7 {[%emt 0:04:10] [#]} 22. e4 $1 {[%emt 0:07:29]} Rc4 {[%emt 0:01:19]} 23. Bxh6 {[%emt 0:04:13] Threatening e5.} Rxe4 {[%emt 0:00:51]} 24. h3 {[%emt 0:00:07]} Rc8 {[%emt 0:00:55]} 25. Be3 {[%emt 0:01:38][%cal Bh6e3,Be3d4,Bd4f6][%mdl 32]} Rc2 {[%emt 0:02:58]} 26. Nd4 {[%emt 0:01:59]} Bxd4 {[%emt 0:05:08]} 27. Bxd4 {[%emt 0:00:11]} Ree2 {[%emt 0:00:49]} 28. Rf3 {[%emt 0:03:19]} f5 {[%emt 0:02:23]} (28... Rc7 $142) 29. Bf6 $16 {[%emt 0:01:28]} fxg4 {[%emt 0:00:20]} 30. hxg4 {[%emt 0:00:07]} Rc4 {[%emt 0:00:43]} 31. Kh3 {[%emt 0:03:02]} a5 {[%emt 0:01:39]} 32. bxa5 {[%emt 0:01:11]} bxa5 {[%emt 0:00:15]} 33. Rb1 {[%emt 0:02:35]} Rc8 {[%emt 0:01:47]} (33... Rc7 {was worth a try.} 34. Rb8+ Rc8) 34. Rb7 $18 {[%emt 0:01:08]} Rf8 {[%emt 0:00:19]} 35. g5 {[%emt 0:03:58][%cal Oh3g2] Kg2! is the strong threat.} (35. Rxe7 $2 {too greedy.} Rxe7 36. g5 Rd7 $19) 35... Nf5 $2 {[%emt 0:05:09] [#]} (35... Rf7 36. Rc3 d4 37. Bxd4 (37. Rcc7 d3 $18) 37... Nf5 38. Rc8+ Rf8 39. Rxf8+ Kxf8) 36. Rxf5 $1 {[%emt 0:01:51] Threatening mate with Rg7+.} gxf5 {[%emt 0:00:15][%mdl 4096] Endgame KRR-KRB} (36... Rf7 37. Rb8+) 37. Rg7+ {[%emt 0:00:03]} Kh8 {[%emt 0:00:19]} 38. Rf7+ {[%emt 0:00:04]} Kg8 {[%emt 0:00:05]} 39. Rg7+ {[%emt 0:00:02]} Kh8 {[%emt 0:00:04]} 40. Re7+ {[%emt 0:00:13] White mates.} Rxf6 {[%emt 0:00:07]} 41. gxf6 {[%emt 0:00:17]} Re4 {[%emt 0:02:30] [#]} 42. f3 $1 {[%emt 0:00:09] Weighted Error Value: White=0.18 (very precise) /Black=0.48  Loses game:     	---       	Black=1      Mistake:       	---       	Black=3      Inaccurate:     	White=1     	Black=2      OK:         	White=15    	Black=5      Best:        	White=3     	---        Brilliant:      	White=1     	---} 1-0

[Event "44th Indian Team Championship 2025"]
[Site "Gujarat"]
[Date "2025.03.05"]
[Round "1.4"]
[White "Godhani Maharth"]
[Black "Gusain, Himal"]
[Result "0-1"]
[Annotator "TA"]
[ECO "D02"]
[WhiteElo "1869"]
[BlackElo "2528"]
[PlyCount "56"]
[EventDate "2025.03.03"]
[EventCountry "IND"]
[SourceTitle "playchess.com"]
[Source "ChessBase"]
[SourceQuality "1"]
[TimeControl "5400+30"]

{[%evp 9,56,0,8,2,8,-18,-15,-17,0,-6,15,3,22,-45,-50,-43,3,-28,35,8,47,-50,-54,-60,155,140,160,-17,-22,-35,-28,-113,-67,-434,-433,-645,-626,-642,-550,-545,-520,-506,-487,-905,-885,-1108,-1106,-1074,-1060]} 1. d4 {[%emt 0:00:04]} d5 {[%emt 0:00:17]} 2. Nf3 {[%emt 0:00:08]} e6 {[%emt 0:00:06]} 3. e3 {[%emt 0:00:08]} Bd6 {[%emt 0:00:22]} 4. Bd3 {[%emt 0:00:08]} f5 {[%emt 0:00:16]} 5. Ne5 {[%emt 0:00:07]} Nf6 {[%emt 0:00:07]} 6. O-O {[%emt 0:00:14] D02: 1 d4 d5 2 Nf3 sidelines, including 2...Nf6 3 g3 and 2...Nf6 3 Bf4.} O-O {[%emt 0:00:16]} 7. f4 {[%emt 0:00:08]} c5 {[%emt 0:00:06]} 8. b3 {[%emt 0:00:07] The position is equal.} b6 {[%emt 0:00:32]} 9. Bb2 $146 {[%emt 0:00:12]} (9. c3 Ba6 10. Bxa6 Nxa6 11. Nd2 Rc8 12. Qe2 Nb8 13. Bb2 Nc6 14. Ndf3 Ne4 15. Nxc6 Rxc6 {0-1 Carvalho,L (1451)-Sousa,H (1866) Gaia Profigaia op 8th 2015 (4)}) 9... Ba6 {[%emt 0:01:04]} 10. c4 {[%emt 0:01:04]} Ne4 {[%emt 0:00:51]} 11. Nd2 {[%emt 0:02:08]} (11. Bxe4 $11 fxe4 12. Nc3) 11... Bxe5 $1 $15 {[%emt 0:01:47]} 12. fxe5 {[%emt 0:02:44]} Qg5 {[%emt 0:04:24]} (12... Nc6 $15) 13. Rf3 {[%emt 0:03:29] A sharp opening} cxd4 {[%emt 0:01:59]} ({Better is} 13... Nc6 $11 14. Nxe4 dxe4 (14... fxe4 15. Rg3 $11)) 14. Bxe4 {[%emt 0:01:15] White sacrificed a pawn} (14. Nxe4 $5 dxe4 15. Bxe4 fxe4 16. Rxf8+ Kxf8 17. Qxd4 $14) 14... dxe4 {[%emt 0:00:12]} (14... fxe4 $5 15. Rg3 (15. Rxf8+ Kxf8 16. exd4 Nc6 $14) 15... Qh6 $11 (15... Qxe5 $2 16. Bxd4 $18)) 15. Rg3 {[%emt 0:00:12]} (15. Nxe4 $14 fxe4 16. Rxf8+ Kxf8 17. Qxd4) 15... Qe7 {[%emt 0:00:09]} 16. exd4 {[%emt 0:01:30]} f4 $2 {[%emt 0:00:57]} (16... Bb7 $15 {keeps the upper hand.}) 17. Rh3 $1 $16 {[%emt 0:03:25]} Bb7 {[%emt 0:02:24] [#]} 18. Qg4 {[%emt 0:01:07] Repels Qg5} (18. Qc2 $6 Qg5 $14) ({White has to play} 18. Qb1 $1 $16) 18... e3 $11 {[%emt 0:08:51]} 19. Nf3 {[%emt 0:06:23][%cal Od4d5] d5! is the strong threat.} Be4 $36 {[%emt 0:00:53][%mdl 2048] and ...Nc6 would now be decisive White is under pressure.} 20. Ba3 {[%emt 0:07:00] [#]} Bxf3 $1 $17 {[%emt 0:08:56]} (20... Qxa3 21. Qxe6+ Rf7 (21... Kh8 22. Ng5 $16) 22. Ng5 $11) 21. Qxf3 {[%emt 0:05:57][%mdl 8192] [#] Now White is beyond hope.} (21. Bxe7 $2 Bxg4 22. Rh4 Rf7 23. Rxg4 Rxe7 $19) (21. gxf3 $15 Qxa3 22. Qxe6+ Rf7 23. Qd5) 21... Qxa3 $1 $19 {[%emt 0:00:18] Black is clearly winning.} 22. Qxa8 {[%emt 0:01:24]} (22. Qe4 $142 g6 23. Qb7 (23. Qxa8 $2 Qb2 $19)) (22. Rf1 Nd7) 22... Qb2 $1 {[%emt 0:01:01][%csl LRa1,LRd4]} 23. Rf1 {[%emt 0:00:17]} e2 {[%emt 0:00:07]} 24. Qe4 {[%emt 0:00:48]} exf1=Q+ {[%emt 0:00:11]} 25. Kxf1 {[%emt 0:00:11]} h6 {[%emt 0:00:59]} 26. Rxh6 {[%emt 0:01:16]} (26. Rf3 $142) 26... Qc1+ {[%emt 0:00:05]} (26... gxh6 27. Qg6+ Kh8 28. Qxh6+ Kg8 29. Qg6+ Kh8 30. Qh6+ Kg8 31. Qg6+ Kh8 32. Qh6+ $11) (26... Qxa2 $2 {is the wrong capture.} 27. Qh7+ Kf7 28. Rf6+ Ke8 29. Qg6+ (29. Qxg7 Qb1+ 30. Kf2 Qc2+ 31. Kf3 Qd1+ 32. Ke4 Qe2+ 33. Kxf4 Qf2+ 34. Ke4 Qc2+ 35. Ke3 Qc3+ 36. Kf4 Qxd4+ 37. Kf3 Nd7 $19) (29. Rxe6+ Kd8 $11) 29... Kd8 30. Rxf8+ $18) 27. Ke2 {[%emt 0:00:26]} f3+ {[%emt 0:00:05]} ({And not} 27... gxh6 28. Qg6+ Kh8 29. Qxh6+ Kg8 30. Qg6+ Kh8 31. Qh6+ Kg8 32. Qg6+ Kh8 33. Qh6+ $11) 28. gxf3 {[%emt 0:02:13]} Qxh6 {[%emt 0:00:19] Weighted Error Value: White=0.79/Black=0.25 (precise)   Loses game:     	White=1     	---        Mistake:       	White=6     	Black=3      Inaccurate:     	White=3     	Black=1      OK:         	White=4     	Black=5      Best:        	---       	Black=3      Strong:       	White=1     	Black=2} 0-1

[Event "44th Indian Team Championship 2025"]
[Site "Gujarat"]
[Date "2025.03.05"]
[Round "1.5"]
[White "Aaradhya Jain"]
[Black "Vignesh N R"]
[Result "0-1"]
[Annotator "TA"]
[ECO "E26"]
[WhiteElo "1815"]
[BlackElo "2537"]
[PlyCount "106"]
[EventDate "2025.03.03"]
[EventCountry "IND"]
[SourceTitle "playchess.com"]
[Source "ChessBase"]
[SourceQuality "1"]
[TimeControl "5400+30"]

{[%evp 19,106,-1,0,0,24,-8,0,0,0,-16,-16,-85,-80,-77,-66,-156,-152,-157,-153,-170,-166,-162,-161,-147,-153,-187,-187,-214,-204,-225,-228,-264,-270,-327,-319,-320,-317,-386,-386,-384,-378,-380,-377,-470,-344,-358,-345,-492,-459,-519,-520,-520,-509,-542,-562,-602,-595,-570,-529,-610,-595,-604,-611,-562,-512,-563,-551,-852,-829,-29973,-29974,-29978,-29979,-29979,-29980,-29983,-29984,-29984,-29985,-29985,-29986,-29986,-29987,-29987,-29988,-29988,-29989,-29990,-29991]} 1. d4 {[%emt 0:00:04]} Nf6 {[%emt 0:00:48]} 2. c4 {[%emt 0:00:07]} e6 {[%emt 0:00:11]} 3. Nc3 {[%emt 0:00:15]} Bb4 {[%emt 0:00:10]} 4. a3 {[%emt 0:00:24]} Bxc3+ {[%emt 0:00:10]} 5. bxc3 {[%emt 0:00:04]} c5 {[%emt 0:04:29]} 6. e3 {[%emt 0:00:06]} b6 {[%emt 0:04:22]} 7. Bd3 {[%emt 0:00:07]} Bb7 {[%emt 0:00:06]} 8. f3 {[%emt 0:00:04]} Nc6 {[%emt 0:01:03]} 9. Ne2 {[%emt 0:00:06]} d6 {[%emt 0:00:55]} 10. O-O {[%emt 0:00:14]} O-O {[%emt 0:06:05]} 11. e4 {[%emt 0:00:25] E26: Nimzo-Indian: Sämisch: 5...c5 6 e3.} Ne8 {[%emt 0:00:33]} 12. d5 {[%emt 0:16:11]} Na5 {[%emt 0:02:50]} 13. Ng3 {[%emt 0:01:16] The position is equal.} Ba6 {[%emt 0:04:57]} 14. f4 $146 {[%emt 0:06:38]} (14. Qe2 Qd7 15. a4 f5 16. dxe6 Qxe6 17. Nxf5 Bxc4 18. Bxc4 Qxc4 19. Qxc4+ Nxc4 20. Ne3 Nxe3 21. Bxe3 {1-0 Boleslawski,Z-Gawlikowski,S POL-ch10 Katowice 1952 (10)}) 14... Bxc4 {[%emt 0:02:27]} 15. f5 {[%emt 0:00:20]} (15. Bxc4 $11 Nxc4 16. Qd3 exd5 17. Qxd5) 15... Bxd3 $17 {[%emt 0:04:19]} (15... exd5 16. Bxc4 Nxc4 17. f6 $11) 16. Qxd3 {[%emt 0:00:02]} Nb3 {[%emt 0:02:07]} 17. Rb1 {[%emt 0:30:57]} (17. fxe6 $1 $15 Nxa1 18. Nf5 fxe6 19. dxe6 Rxf5 (19... Qf6 20. e7 $18) 20. exf5) 17... Nxc1 {[%emt 0:00:24]} 18. Rbxc1 {[%emt 0:00:02] [#]} exd5 {[%emt 0:00:32]} 19. exd5 {[%emt 0:03:00]} Nf6 {[%emt 0:00:10]} 20. Rce1 {[%emt 0:04:53]} Re8 {[%emt 0:00:29]} 21. Ne4 {[%emt 0:00:44]} Re5 {[%emt 0:07:11]} 22. Nxf6+ {[%emt 0:00:39]} Qxf6 {[%emt 0:00:02]} ({And not} 22... gxf6 23. Rxe5 dxe5 24. c4 $11) 23. Rxe5 {[%emt 0:00:13]} Qxe5 {[%emt 0:00:02][%mdl 4096] Endgame KQR-KQR. Black is a pawn up.} 24. f6 {[%emt 0:00:11]} Re8 {[%emt 0:00:35]} (24... gxf6 25. Rf5 Qe1+ 26. Rf1 $11) 25. Kh1 {[%emt 0:01:42]} Qe2 {[%emt 0:08:04]} 26. Qf5 {[%emt 0:00:52]} g6 {[%emt 0:00:17]} 27. Qf4 {[%emt 0:00:07]} Re4 {[%emt 0:00:50]} 28. Qc1 {[%emt 0:00:06]} h5 {[%emt 0:02:53]} 29. h3 {[%emt 0:05:49]} Kh7 {[%emt 0:01:09]} 30. Kh2 {[%emt 0:00:46]} Qe3 {[%emt 0:01:21]} 31. Qb1 {[%emt 0:04:28]} Rf4 {[%emt 0:04:36]} 32. Qe1 {[%emt 0:00:29]} Qe4 {[%emt 0:03:44]} 33. Kg3 {[%emt 0:06:36]} (33. Rg1 {is a better defense.}) 33... g5 $19 {[%emt 0:01:34]} 34. Kh2 {[%emt 0:02:25]} Qxe1 {[%emt 0:01:34]} 35. Rxe1 {[%emt 0:00:01] KR-KR. Black is a pawn up.} Kg6 {[%emt 0:00:04]} 36. Re7 {[%emt 0:02:20]} Ra4 {[%emt 0:00:06]} (36... Rxf6 $2 37. Rxa7 b5 38. Ra5 $19) 37. Rd7 {[%emt 0:00:16]} Rxa3 {[%emt 0:00:04]} 38. c4 {[%emt 0:00:11]} Ra4 {[%emt 0:00:07]} 39. Rxd6 {[%emt 0:00:06]} Rxc4 {[%emt 0:00:01]} 40. Rd7 {[%emt 0:00:21]} Rd4 {[%emt 0:00:09]} 41. Rxa7 {[%emt 0:01:04]} Rxd5 {[%emt 0:00:05][%cal Oc5c4] [#]} 42. Rb7 {[%emt 0:00:13]} Rd6 {[%emt 0:00:02][%cal Od6c6] White must now prevent ...Rc6!.} (42... Kxf6 43. Rxb6+ Ke5 44. Rh6 $19) 43. Kg3 {[%emt 0:00:17]} Rxf6 {[%emt 0:00:14] ( -> ...h4+)} 44. h4 {[%emt 0:00:21]} gxh4+ {[%emt 0:00:16] Black mates.} 45. Kxh4 {[%emt 0:00:05]} Rc6 {[%emt 0:00:03]} 46. g4 {[%emt 0:01:09]} hxg4 {[%emt 0:00:09]} 47. Kxg4 {[%emt 0:00:06]} c4 {[%emt 0:00:02]} 48. Rd7 {[%emt 0:00:51]} c3 {[%emt 0:00:05]} 49. Rd1 {[%emt 0:00:07]} c2 {[%emt 0:00:10]} 50. Rc1 {[%emt 0:00:02]} b5 {[%emt 0:00:06]} 51. Kf4 {[%emt 0:00:05]} b4 {[%emt 0:00:05]} 52. Ke4 {[%emt 0:00:10]} b3 {[%emt 0:00:04]} 53. Kd3 {[%emt 0:00:29]} b2 {[%emt 0:00:13] Black took control after the opening.   Weighted Error Value: White=0.50/Black=0.05 (flawless)   Mistake:       	White=3     	---        Inaccurate:     	White=3     	---        OK:         	White=7     	Black=19     Best:        	White=1     	Black=4} 0-1